bitfinex/quotes_BTCUSD_20240723
["timestamp","ask_amount","ask_price","bid_price","bid_amount"]
[1721740794459,0.025,66555.0,66554.0,3.6899678]
[1721740794600,0.025,66555.0,66554.0,3.6759678]
[1721740794799,0.025,66555.0,66554.0,3.6899678]
[1721740795055,0.02584,66555.0,66554.0,3.6899678]
[1721740795291,0.02584,66555.0,66554.0,3.7039678]
[1721740795496,0.02584,66555.0,66554.0,3.41240261]
[1721740796102,0.02584,66555.0,66554.0,3.45287615]
[1721740796379,0.02584,66555.0,66554.0,3.63521532]
[1721740796534,0.02584,66555.0,66554.0,3.62121532]
[1721740797166,0.02584,66555.0,66554.0,3.68846569]
[1721740797368,0.02584,66555.0,66554.0,4.42546569]
[1721740797828,0.02584,66555.0,66554.0,4.75862171]
[1721740798025,0.02584,66555.0,66554.0,4.74462171]
[1721740798445,0.02584,66555.0,66554.0,4.42546569]
[1721740798594,0.02584,66555.0,66554.0,4.43215195]
[1721740798942,0.02584,66555.0,66554.0,4.44615195]
[1721740799078,0.02584,66555.0,66554.0,4.43215195]
[1721740799295,0.02584,66555.0,66554.0,4.37883929]
[1721740800326,0.02584,66555.0,66554.0,4.94358209]
[1721740800700,0.02584,66555.0,66554.0,4.78763119]
[1721740801199,0.02584,66555.0,66554.0,3.15248919]
[1721740801376,0.02584,66555.0,66554.0,2.47445974]
[1721740801700,0.02584,66555.0,66554.0,2.52445974]
[1721740802024,0.02584,66555.0,66554.0,2.53845974]
[1721740802420,0.02584,66555.0,66554.0,2.52469703]
[1721740802624,0.02584,66555.0,66554.0,2.53369703]
[1721740802826,0.02584,66555.0,66554.0,2.59250486]
[1721740803089,0.02584,66555.0,66554.0,2.54769703]
[1721740803228,0.02584,66555.0,66554.0,2.31593198]
[1721740803533,0.02584,66555.0,66554.0,2.30907078]
[1721740804554,0.02584,66555.0,66554.0,2.32307078]
[1721740804730,0.02584,66555.0,66554.0,2.27307078]
[1721740804868,0.02584,66555.0,66554.0,1.77307078]
[1721740805095,0.02584,66555.0,66554.0,2.27307078]
[1721740805296,0.02584,66555.0,66554.0,1.75907078]
[1721740805510,0.02584,66555.0,66554.0,2.25907078]
[1721740805712,0.02584,66555.0,66554.0,1.75907078]
[1721740805956,0.02584,66555.0,66554.0,2.25907078]
[1721740806212,0.02584,66555.0,66554.0,2.32307078]
[1721740806613,0.02584,66555.0,66554.0,2.33707078]
[1721740807037,0.02584,66555.0,66554.0,2.32307078]
[1721740807663,0.02584,66555.0,66554.0,2.33707078]
[1721740808069,0.02584,66555.0,66554.0,2.32307078]
[1721740808295,0.02584,66555.0,66554.0,2.56876219]
[1721740808639,0.02584,66555.0,66554.0,2.58276219]
[1721740809485,0.02584,66555.0,66554.0,2.88326919]
[1721740810472,0.02584,66555.0,66554.0,2.03320002]
[1721740810830,0.02584,66555.0,66554.0,2.53320002]
[1721740811362,0.02584,66555.0,66554.0,2.48320002]
[1721740811470,0.10394,66555.0,66554.0,1.60075121]
[1721740812308,0.10394,66555.0,66554.0,1.58675121]
[1721740812543,0.10394,66555.0,66554.0,1.55875121]
[1721740812778,0.10394,66555.0,66554.0,1.57275121]
[1721740813224,0.10394,66555.0,66554.0,1.58675121]
[1721740813651,0.10394,66555.0,66554.0,1.34062197]
[1721740813850,0.10394,66555.0,66554.0,1.58909092]
[1721740814509,0.10394,66555.0,66554.0,1.57509092]
[1721740814971,0.10394,66555.0,66554.0,1.58909092]
[1721740815189,0.10394,66555.0,66554.0,0.98807692]
[1721740815389,0.10394,66555.0,66554.0,0.82382392]
[1721740815614,0.10394,66555.0,66554.0,0.83782392]
[1721740816019,0.10394,66555.0,66554.0,1.00207692]
[1721740816795,0.10394,66555.0,66554.0,1.30258392]
[1721740816998,0.10394,66555.0,66554.0,1.35462197]
[1721740817213,0.02584,66555.0,66554.0,1.95311488]
[1721740817436,0.02584,66555.0,66554.0,1.60260252]
[1721740818432,0.02584,66555.0,66554.0,2.07610952]
[1721740820344,0.02584,66555.0,66554.0,2.07498656]
[1721740820748,0.02584,66555.0,66554.0,2.2309464]
[1721740822010,0.02584,66555.0,66554.0,2.74824282]
[1721740822211,0.02584,66555.0,66554.0,2.8747534]
[1721740823241,0.02584,66555.0,66554.0,2.62789581]
[1721740823460,0.02584,66555.0,66554.0,2.8739124]
[1721740823664,0.02584,66555.0,66554.0,2.5734054]
[1721740823863,0.02584,66555.0,66554.0,2.8801054]
[1721740824085,0.02584,66555.0,66554.0,2.3801054]
[1721740824264,0.02584,66555.0,66554.0,2.8801054]
[1721740824608,0.02584,66555.0,66554.0,2.22414556]
[1721740824819,0.02584,66555.0,66554.0,1.60063856]
[1721740825428,0.00084,66555.0,66554.0,1.30013156]
[1721740825748,0.00084,66555.0,66554.0,1.60063856]
[1721740826354,0.00084,66555.0,66554.0,1.60323503]
[1721740826573,0.07778,66557.0,66556.0,0.150249]
[1721740826768,0.07778,66557.0,66556.0,1.24687997]
[1721740827135,0.07778,66557.0,66556.0,1.55409431]
[1721740827271,0.07778,66557.0,66556.0,1.25359631]
[1721740827654,0.07778,66557.0,66556.0,1.55409431]
[1721740828513,0.07778,66557.0,66556.0,1.56809431]
[1721740829104,0.07778,66557.0,66556.0,1.58307252]
[1721740829524,0.07778,66557.0,66556.0,1.28197811]
[1721740830950,0.07778,66557.0,66556.0,1.29597811]
[1721740832020,0.07778,66557.0,66556.0,1.2809999]
[1721740832505,0.07778,66557.0,66556.0,1.03298325]
[1721740832705,0.07778,66557.0,66556.0,1.28148402]
[1721740833137,0.07778,66557.0,66556.0,1.58198202]
[1721740833497,0.07778,66557.0,66556.0,1.28148402]
[1721740833671,0.07778,66557.0,66556.0,1.58198202]
[1721740835824,0.1433,66571.0,66556.0,0.58223625]
[1721740836058,0.1433,66571.0,66570.0,0.450652]
[1721740836264,0.1433,66571.0,66570.0,1.16833043]
[1721740836621,0.1433,66571.0,66570.0,1.17503033]
[1721740836826,0.1433,66571.0,66570.0,1.47546533]
[1721740837041,0.00083,66576.0,66575.0,0.450619]
[1721740837042,0.14413,66576.0,66575.0,0.450619]
[1721740837265,0.14413,66576.0,66575.0,1.45370222]
[1721740837414,0.14413,66576.0,66575.0,1.46039752]
[1721740838366,0.14413,66576.0,66575.0,1.47439752]
[1721740838566,0.14413,66576.0,66575.0,1.46039752]
[1721740838742,0.14413,66576.0,66575.0,1.45874751]
[1721740839121,0.14413,66576.0,66575.0,1.47274751]
[1721740839313,0.14413,66576.0,66575.0,1.17233451]
[1721740840406,0.00083,66576.0,66575.0,1.52274751]
[1721740840579,0.00083,66576.0,66575.0,1.50974751]
[1721740840900,0.00083,66576.0,66575.0,1.51300311]
[1721740841306,0.00083,66576.0,66575.0,1.81341611]
[1721740841504,0.00083,66576.0,66575.0,1.51300311]
[1721740841743,0.00083,66576.0,66575.0,1.49900311]
[1721740841951,0.00083,66576.0,66575.0,1.47073238]
[1721740842095,0.00083,66576.0,66575.0,1.49873238]
[1721740842728,0.00083,66576.0,66575.0,1.79914538]
[1721740842966,0.00083,66576.0,66575.0,1.49873238]
[1721740845521,0.00083,66576.0,66575.0,1.49875074]
[1721740845943,0.00083,66576.0,66575.0,1.54875074]
[1721740846096,0.00083,66576.0,66575.0,1.48879984]
[1721740846896,0.00083,66576.0,66575.0,1.53879984]
[1721740847876,0.00083,66576.0,66575.0,1.83357884]
[1721740848270,0.00083,66576.0,66575.0,1.81957884]
[1721740848470,0.00083,66576.0,66575.0,1.51916584]
[1721740848687,0.00083,66576.0,66575.0,1.81957884]
[1721740848879,0.00083,66576.0,66575.0,1.83357884]
[1721740849299,0.00083,66576.0,66575.0,1.83354675]
[1721740849643,0.00083,66576.0,66575.0,1.84754675]
[1721740850037,0.00083,66576.0,66575.0,1.54713375]
[1721740850393,0.00083,66576.0,66575.0,1.84754675]
[1721740850812,0.00083,66576.0,66575.0,1.85436387]
[1721740851148,0.00083,66576.0,66575.0,1.3559786]
[1721740851353,0.00083,66576.0,66575.0,1.48990798]
[1721740851558,0.00083,66576.0,66575.0,1.50390798]
[1721740852266,0.00083,66576.0,66575.0,1.47590798]
[1721740852647,0.00083,66576.0,66575.0,1.48990798]
[1721740852851,0.00083,66576.0,66575.0,1.53990798]
[1721740853002,0.00083,66576.0,66575.0,1.84032098]
[1721740853228,0.00083,66576.0,66575.0,2.03322098]
[1721740853435,0.00083,66576.0,66575.0,2.19392098]
[1721740854302,0.00083,66576.0,66575.0,2.14392098]
[1721740854536,0.00083,66576.0,66575.0,2.62992098]
[1721740854695,0.00083,66576.0,66575.0,2.67992098]
[1721740855097,0.00083,66576.0,66575.0,2.66592098]
[1721740855496,0.00083,66576.0,66575.0,2.67992098]
[1721740855902,0.00083,66576.0,66575.0,2.69392098]
[1721740856485,0.00083,66576.0,66575.0,2.67992098]
[1721740856682,0.00083,66576.0,66575.0,3.18033398]
[1721740857038,0.00083,66576.0,66575.0,3.19433398]
[1721740857783,0.00083,66576.0,66575.0,3.18033398]
[1721740858003,0.00083,66576.0,66575.0,3.22513681]
[1721740858248,1e-06,66576.0,66575.0,3.41743169]
[1721740858464,0.002,66579.0,66578.0,0.300199]
[1721740858784,0.002,66579.0,66578.0,2.99512993]
[1721740858974,0.002,66579.0,66578.0,3.62853099]
[1721740859376,0.002,66579.0,66578.0,3.29552893]
[1721740859555,0.00847,66580.0,66579.0,1.802172]
[1721740859719,0.00847,66580.0,66579.0,3.3912037]
[1721740859919,0.00847,66580.0,66579.0,3.50996874]
[1721740860540,0.00847,66580.0,66579.0,3.50795379]
[1721740860757,0.00847,66580.0,66579.0,3.39606774]
[1721740860975,0.00847,66580.0,66579.0,3.48554469]
[1721740861875,0.00847,66580.0,66579.0,3.39606774]
[1721740862750,0.00847,66580.0,66579.0,3.48554469]
[1721740862958,0.00847,66580.0,66579.0,3.49954469]
[1721740863164,0.00847,66580.0,66579.0,3.42406774]
[1721740863365,0.00847,66580.0,66579.0,3.41006774]
[1721740863574,0.00847,66580.0,66579.0,3.97742265]
[1721740863773,0.00847,66580.0,66579.0,3.92435233]
[1721740863958,0.00847,66580.0,66579.0,3.85992266]
[1721740864163,0.00847,66580.0,66579.0,4.35992266]
[1721740864589,0.00847,66580.0,66579.0,4.29285233]
[1721740864842,0.00847,66586.0,66584.0,2.077246]
[1721740865012,0.00847,66586.0,66584.0,3.1953479]
[1721740865220,0.00847,66586.0,66584.0,3.20205233]
[1721740866045,0.00847,66586.0,66584.0,3.21605233]
[1721740866629,0.01047,66599.0,66591.0,0.85]
[1721740866835,0.01047,66599.0,66591.0,2.30690472]
[1721740867053,0.01047,66599.0,66591.0,3.40791004]
[1721740867259,0.01047,66599.0,66591.0,3.70825004]
[1721740868121,0.01047,66599.0,66591.0,3.72225004]
[1721740868267,0.01047,66599.0,66591.0,3.4850135]
[1721740868487,0.01047,66599.0,66591.0,3.72149381]
[1721740869808,0.01047,66599.0,66591.0,3.77036659]
[1721740870009,0.03238,66592.0,66591.0,3.7735397]
[1721740870408,0.03238,66592.0,66591.0,3.73866692]
[1721740870613,0.03238,66592.0,66591.0,3.43832692]
[1721740870819,0.03238,66592.0,66591.0,3.2824723]
[1721740871559,0.03238,66592.0,66591.0,3.1378723]
[1721740872044,0.03238,66592.0,66591.0,4.16023409]
[1721740872353,0.03238,66592.0,66591.0,4.82498979]
[1721740872759,0.03238,66592.0,66591.0,4.66913409]
[1721740872991,0.03238,66592.0,66591.0,4.37823315]
[1721740873707,1e-08,66592.0,66591.0,4.38706648]
[1721740874034,1e-08,66592.0,66591.0,4.84326315]
[1721740874295,0.01047,66599.0,66593.0,1.501489]
[1721740874493,0.01047,66599.0,66593.0,2.40922569]
[1721740874696,0.01047,66599.0,66593.0,2.41908252]
[1721740874928,0.01047,66599.0,66593.0,2.71941352]
[1721740875438,0.01047,66599.0,66593.0,2.41908252]
[1721740876095,0.01047,66599.0,66593.0,2.19617157]
[1721740876292,0.01047,66599.0,66593.0,2.43189843]
[1721740876673,0.01047,66599.0,66593.0,2.41789843]
[1721740877109,0.01047,66599.0,66593.0,2.3759542]
[1721740877338,0.01047,66599.0,66593.0,2.33240081]
[1721740877508,0.01047,66599.0,66593.0,2.34640081]
[1721740877731,0.01047,66599.0,66593.0,2.36040081]
[1721740877860,0.01047,66599.0,66593.0,2.34640081]
[1721740878060,0.01047,66599.0,66593.0,2.36040081]
[1721740878987,0.01047,66599.0,66593.0,2.34640081]
[1721740879192,0.01047,66599.0,66593.0,2.34714914]
[1721740879395,0.01047,66599.0,66593.0,2.50300022]
[1721740879611,0.01047,66599.0,66593.0,2.50202201]
[1721740879812,0.01047,66599.0,66593.0,2.54673775]
[1721740880347,0.01047,66599.0,66593.0,2.48802201]
[1721740880699,0.01047,66599.0,66593.0,2.53274366]
[1721740881308,0.01047,66599.0,66593.0,2.48802201]
[1721740881514,0.01047,66599.0,66593.0,2.50202201]
[1721740882070,0.01047,66599.0,66593.0,2.54675403]
[1721740882371,0.01047,66599.0,66593.0,2.50006465]
[1721740882525,0.01047,66599.0,66593.0,2.50006489]
[1721740883357,0.01047,66599.0,66593.0,3.27392258]
[1721740883558,0.01047,66599.0,66593.0,3.27392277]
[1721740883882,0.01047,66599.0,66593.0,2.56717435]
[1721740884081,0.01047,66599.0,66593.0,2.55317435]
[1721740884282,0.01047,66599.0,66593.0,2.87210326]
[1721740884511,0.01047,66599.0,66593.0,2.90010326]
[1721740884712,0.01047,66599.0,66593.0,2.8189938]
[1721740884916,1e-06,66594.0,66593.0,3.03778322]
[1721740885114,1e-06,66594.0,66593.0,3.44159351]
[1721740885582,1e-06,66594.0,66593.0,3.35211422]
[1721740886101,0.01047,66599.0,66598.0,2.501699]
[1721740886303,0.01047,66599.0,66598.0,3.48721357]
[1721740887182,0.01047,66599.0,66598.0,3.55431896]
[1721740887594,0.01047,66599.0,66598.0,3.88722164]
[1721740887807,0.01047,66599.0,66598.0,4.17791625]
[1721740888025,0.00847,66604.0,66603.0,1.801573]
[1721740888237,0.00847,66604.0,66603.0,2.82934934]
[1721740888440,0.00847,66604.0,66603.0,2.53756441]
[1721740888642,0.0605,66614.0,66607.0,2.201206]
[1721740888868,0.0605,66614.0,66607.0,3.17471751]
[1721740889076,0.0605,66614.0,66607.0,3.18454242]
[1721740890945,0.0605,66614.0,66607.0,3.18451515]
[1721740891147,0.0605,66614.0,66607.0,3.21251515]
[1721740891564,0.0605,66614.0,66607.0,2.98012284]
[1721740891764,0.0605,66614.0,66607.0,3.19782862]
[1721740892528,0.0605,66614.0,66607.0,3.18382862]
[1721740892863,0.0605,66614.0,66607.0,3.19685041]
[1721740893643,0.0605,66614.0,66607.0,3.56535041]
[1721740894244,0.0605,66614.0,66607.0,3.53735041]
[1721740894616,0.0605,66614.0,66607.0,3.33364463]
[1721740894804,0.0605,66614.0,66607.0,3.31964463]
[1721740894985,0.0605,66614.0,66607.0,3.53938317]
[1721740895180,0.0605,66614.0,66607.0,3.55338317]
[1721740895408,0.0605,66614.0,66607.0,3.56738317]
[1721740895570,0.0605,66614.0,66607.0,3.55338317]
[1721740895773,0.0605,66614.0,66607.0,3.56738317]
[1721740895995,0.0605,66614.0,66607.0,3.55338317]
[1721740896194,0.0605,66614.0,66607.0,3.53938317]
[1721740896399,0.0605,66614.0,66607.0,3.58409676]
[1721740896840,0.0605,66614.0,66607.0,3.53938317]
[1721740897442,0.0605,66614.0,66607.0,3.96659676]
[1721740897641,0.1372,66627.0,66607.0,3.93495931]
[1721740897843,0.1372,66627.0,66607.0,4.37156555]
[1721740898182,0.1372,66627.0,66607.0,4.28213507]
[1721740898321,0.1372,66627.0,66607.0,4.39392317]
[1721740898541,0.0613,66613.0,66607.0,4.19343375]
[1721740898740,0.0613,66613.0,66607.0,3.0312831]
[1721740898971,0.0613,66613.0,66607.0,2.62825094]
[1721740899186,0.08437,66608.0,66607.0,2.02516332]
[1721740899333,0.08437,66608.0,66607.0,2.53916332]
[1721740899531,0.08437,66608.0,66607.0,2.58916332]
[1721740899962,0.14567,66608.0,66607.0,1.61953551]
[1721740900162,0.14567,66608.0,66607.0,1.9099786]
[1721740900387,0.14567,66608.0,66607.0,2.2102466]
[1721740900761,0.14562,66608.0,66607.0,2.51842589]
[1721740900960,0.14562,66608.0,66607.0,2.21815789]
[1721740901188,0.14562,66608.0,66607.0,2.20415789]
[1721740901366,0.14562,66608.0,66607.0,2.29015789]
[1721740902069,0.14562,66608.0,66607.0,2.27615789]
[1721740902377,0.14562,66608.0,66607.0,2.29015789]
[1721740902833,0.14562,66608.0,66607.0,2.59042589]
[1721740903007,0.14562,66608.0,66607.0,2.3030221]
[1721740903474,0.14562,66608.0,66607.0,2.2890221]
[1721740903873,0.14562,66608.0,66607.0,2.28750461]
[1721740904104,0.14562,66608.0,66607.0,2.27350461]
[1721740904561,0.14562,66608.0,66607.0,2.58777261]
[1721740904802,0.14562,66608.0,66607.0,2.65177261]
[1721740905033,0.00842,66608.0,66607.0,2.69677261]
[1721740905257,0.00842,66608.0,66607.0,2.76077261]
[1721740905491,0.00842,66608.0,66607.0,3.17491903]
[1721740905691,0.00842,66608.0,66607.0,3.61635954]
[1721740905823,0.00842,66608.0,66607.0,3.60235954]
[1721740906376,0.00842,66608.0,66607.0,3.71447435]
[1721740906518,0.00842,66608.0,66607.0,3.60235954]
[1721740906921,0.00842,66608.0,66607.0,3.6046318]
[1721740907335,0.00842,66608.0,66607.0,3.6186318]
[1721740907974,0.00842,66608.0,66607.0,3.6326318]
[1721740908181,0.00842,66608.0,66607.0,3.6186318]
[1721740908413,0.00842,66608.0,66607.0,3.2501318]
[1721740909181,0.00842,66608.0,66607.0,3.2641318]
[1721740909381,0.00842,66608.0,66607.0,3.5643998]
[1721740909980,0.00842,66608.0,66607.0,3.0968302]
[1721740910181,0.025,66617.0,66616.0,2.201026]
[1721740910339,0.025,66617.0,66616.0,3.07070763]
[1721740910538,0.025,66617.0,66616.0,3.02070763]
[1721740910771,0.025,66617.0,66616.0,2.67047963]
[1721740911018,0.1066,66617.0,66616.0,2.47563256]
[1721740911193,0.1066,66617.0,66616.0,2.42563256]
[1721740911359,0.1066,66617.0,66616.0,2.47563256]
[1721740912001,0.1066,66617.0,66616.0,2.48963256]
[1721740912202,0.1066,66617.0,66616.0,2.43963256]
[1721740912381,0.1066,66617.0,66616.0,2.37563256]
[1721740912590,0.1676,66617.0,66616.0,1.56640456]
[1721740912903,0.1676,66617.0,66616.0,1.34079812]
[1721740913103,0.1676,66617.0,66616.0,1.58283839]
[1721740913312,0.1676,66617.0,66616.0,1.43011039]
[1721740913468,0.1676,66617.0,66616.0,1.53188239]
[1721740913669,0.1676,66617.0,66616.0,1.83733839]
[1721740913874,0.1676,66617.0,66616.0,1.46883839]
[1721740914133,0.1676,66617.0,66616.0,1.45483839]
[1721740914390,0.1676,66617.0,66616.0,1.76906639]
[1721740914585,0.1676,66617.0,66616.0,1.80606639]
[1721740914943,0.1676,66617.0,66616.0,1.90606639]
[1721740915141,0.1676,66617.0,66616.0,1.95606639]
[1721740915547,0.1676,66617.0,66616.0,1.95508818]
[1721740915945,0.025,66617.0,66616.0,1.81304791]
[1721740916170,0.025,66617.0,66616.0,2.00499187]
[1721740916355,0.025,66617.0,66616.0,2.55587719]
[1721740916552,0.025,66617.0,66616.0,2.55588582]
[1721740916753,0.025,66617.0,66616.0,2.48303012]
[1721740917300,0.025,66617.0,66616.0,2.46903012]
[1721740917517,0.025,66617.0,66616.0,2.48303012]
[1721740917734,0.025,66617.0,66616.0,2.4778768]
[1721740917969,0.025,66617.0,66616.0,2.49703012]
[1721740918363,0.025,66617.0,66616.0,2.48303012]
[1721740918525,0.025,66617.0,66616.0,2.49703012]
[1721740919150,0.025,66617.0,66616.0,2.86543066]
[1721740919355,0.025,66617.0,66616.0,3.06543066]
[1721740919710,0.025,66617.0,66616.0,2.69693066]
[1721740921250,0.025,66617.0,66616.0,2.68293066]
[1721740921446,0.025,66617.0,66616.0,2.69693066]
[1721740922015,0.025,66617.0,66616.0,2.53293066]
[1721740922187,0.1716,66617.0,66616.0,1.87638867]
[1721740922394,0.1716,66617.0,66616.0,1.85338867]
[1721740922806,0.1716,66617.0,66616.0,2.35338867]
[1721740923589,0.1716,66617.0,66616.0,2.36738867]
[1721740923892,0.1716,66617.0,66616.0,2.37638867]
[1721740924109,0.1716,66617.0,66616.0,2.36238867]
[1721740924643,0.1716,66617.0,66616.0,2.37638867]
[1721740924859,0.1716,66617.0,66616.0,2.44038867]
[1721740925195,0.1716,66617.0,66616.0,2.41238867]
[1721740925196,0.02583,66617.0,66616.0,2.41238867]
[1721740925364,0.02583,66617.0,66616.0,2.44106753]
[1721740925574,0.02583,66617.0,66616.0,2.84129553]
[1721740925720,0.02583,66617.0,66616.0,2.87216356]
[1721740925928,0.02583,66617.0,66616.0,2.82729553]
[1721740926133,0.02583,66617.0,66616.0,2.89459757]
[1721740926331,0.02583,66617.0,66616.0,3.22744169]
[1721740926538,0.02583,66617.0,66616.0,3.31594699]
[1721740926929,0.02583,66617.0,66616.0,3.30194699]
[1721740927132,0.02583,66617.0,66616.0,3.31594699]
[1721740927772,0.02583,66617.0,66616.0,3.30194699]
[1721740927939,0.02583,66617.0,66616.0,3.31594699]
[1721740928136,0.02583,66617.0,66616.0,3.32994699]
[1721740928341,0.02583,66617.0,66616.0,3.67830294]
[1721740928638,0.02583,66617.0,66616.0,3.67757886]
[1721740928866,0.02583,66617.0,66616.0,3.66357886]
[1721740929304,0.02583,66617.0,66616.0,3.76732145]
[1721740929525,0.02583,66617.0,66616.0,3.76070145]
[1721740929775,0.02583,66617.0,66616.0,3.68495886]
[1721740930282,0.02583,66617.0,66616.0,3.78870145]
[1721740930537,0.02583,66617.0,66616.0,3.42557345]
[1721740930730,0.02583,66617.0,66616.0,3.41157345]
[1721740931185,0.02583,66617.0,66616.0,3.42557345]
[1721740931324,0.02583,66617.0,66616.0,3.41157345]
[1721740931530,0.02583,66617.0,66616.0,3.4200867]
[1721740931932,0.02583,66617.0,66616.0,3.49515796]
[1721740932140,0.02583,66617.0,66616.0,3.48115796]
[1721740932569,0.02583,66617.0,66616.0,3.49515796]
[1721740932970,0.02583,66617.0,66616.0,3.48115796]
[1721740933174,0.02583,66617.0,66616.0,3.50360034]
[1721740933376,0.02583,66617.0,66616.0,3.51760034]
[1721740933588,0.02583,66617.0,66616.0,3.39138848]
[1721740934203,0.02583,66617.0,66616.0,3.40538848]
[1721740934634,0.02583,66617.0,66616.0,3.50358615]
[1721740934809,0.02583,66617.0,66616.0,3.50151226]
[1721740935124,0.02583,66617.0,66616.0,3.81574026]
[1721740935526,0.02583,66617.0,66616.0,3.70354272]
[1721740936547,0.00083,66617.0,66616.0,3.70354272]
[1721740937829,0.00083,66617.0,66616.0,3.70353666]
[1721740938248,0.00083,66617.0,66616.0,3.40330866]
[1721740938512,0.00083,66617.0,66616.0,3.35330866]
[1721740938717,0.00083,66617.0,66616.0,3.40330866]
[1721740938914,0.00083,66617.0,66616.0,3.70353666]
[1721740940386,0.00083,66617.0,66616.0,3.81569204]
[1721740940996,0.00083,66617.0,66616.0,3.81778172]
[1721740941440,0.00083,66617.0,66616.0,3.70562539]
[1721740942297,0.00083,66617.0,66616.0,3.78702539]
[1721740942500,1e-06,66624.0,66623.0,2.745774]
[1721740942723,0.1451,66639.0,66638.0,1.400322]
[1721740942880,0.1451,66639.0,66638.0,3.56744804]
[1721740942881,0.002,66639.0,66638.0,3.56744804]
[1721740943137,0.00846,66661.0,66658.0,1.600136]
[1721740943358,0.00846,66661.0,66658.0,2.29389097]
[1721740943556,0.00846,66661.0,66658.0,2.84094988]
[1721740943799,0.00846,66661.0,66658.0,2.59193648]
[1721740944030,0.00846,66661.0,66658.0,2.85084518]
[1721740944443,0.00846,66661.0,66658.0,2.89045654]
[1721740944783,0.00846,66661.0,66658.0,2.90445654]
[1721740945093,0.00846,66661.0,66658.0,2.85445654]
[1721740945299,0.00846,66661.0,66658.0,2.84452343]
[1721740945501,0.00846,66661.0,66658.0,2.89452343]
[1721740945723,0.00846,66661.0,66658.0,2.90852343]
[1721740945938,0.00846,66661.0,66658.0,2.89452343]
[1721740946345,0.00846,66661.0,66658.0,2.92373251]
[1721740946782,0.00846,66661.0,66658.0,2.68203356]
[1721740946980,0.00846,66661.0,66658.0,2.95105764]
[1721740947181,0.00846,66661.0,66658.0,2.96011358]
[1721740947382,0.00846,66661.0,66658.0,2.94611358]
[1721740947856,0.00846,66661.0,66658.0,2.93211358]
[1721740948438,0.00846,66661.0,66658.0,2.91713537]
[1721740948842,1e-06,66661.0,66660.0,1.800165]
[1721740949077,1e-06,66661.0,66660.0,2.94658764]
[1721740949688,1e-06,66661.0,66660.0,2.97667764]
[1721740949892,1e-06,66661.0,66660.0,2.94739287]
[1721740950091,1e-06,66661.0,66660.0,2.99890449]
[1721740950310,1e-06,66661.0,66660.0,2.98490449]
[1721740950515,1e-06,66661.0,66660.0,2.68487449]
[1721740950661,1e-06,66661.0,66660.0,2.72896449]
[1721740950865,1e-06,66661.0,66660.0,3.02899449]
[1721740951326,1e-06,66661.0,66660.0,2.96296904]
[1721740951526,1e-06,66661.0,66660.0,2.97696904]
[1721740952099,4e-05,66665.0,66660.0,2.97696904]
[1721740952100,4e-05,66665.0,66664.0,1.700054]
[1721740952275,4e-05,66665.0,66664.0,2.55029446]
[1721740952867,9e-05,66672.0,66665.0,1.700024]
[1721740953070,1e-08,66666.0,66665.0,2.88717528]
[1721740953289,9e-05,66672.0,66671.0,1.39993]
[1721740953499,9e-05,66672.0,66671.0,3.21529787]
[1721740953722,9e-05,66672.0,66671.0,2.94599787]
[1721740953976,9e-05,66672.0,66671.0,2.99599787]
[1721740954144,9e-05,66672.0,66671.0,2.94599787]
[1721740954351,9e-05,66672.0,66671.0,3.06948729]
[1721740954671,0.14289,66672.0,66671.0,2.1493314]
[1721740954870,0.14289,66672.0,66671.0,1.6263314]
[1721740955008,0.14289,66672.0,66671.0,2.4263114]
[1721740955213,0.14289,66672.0,66671.0,2.18785943]
[1721740955621,0.14289,66672.0,66671.0,0.73790943]
[1721740955831,0.14289,66672.0,66671.0,0.59156286]
[1721740956038,0.14289,66672.0,66671.0,1.69149286]
[1721740956295,0.14289,66672.0,66671.0,1.70549286]
[1721740956490,9e-05,66672.0,66671.0,1.75302089]
[1721740956681,9e-05,66672.0,66671.0,1.73902089]
[1721740957129,9e-05,66672.0,66671.0,1.87602089]
[1721740957301,9e-05,66672.0,66671.0,1.86202089]
[1721740957503,9e-05,66672.0,66671.0,1.80049286]
[1721740957847,9e-05,66672.0,66671.0,1.81449286]
[1721740957977,0.0649,66676.0,66671.0,1.91449286]
[1721740958177,0.002,66679.0,66674.0,1.54690391]
[1721740958378,0.002,66679.0,66674.0,2.38542565]
[1721740958763,0.002,66679.0,66674.0,2.26984091]
[1721740958999,0.002,66679.0,66674.0,2.38587063]
[1721740959574,0.002,66679.0,66674.0,2.39987063]
[1721740959783,0.002,66679.0,66674.0,2.04990363]
[1721740960002,0.002,66679.0,66674.0,2.46157063]
[1721740960439,0.002,66679.0,66674.0,2.47557063]
[1721740960638,0.002,66679.0,66674.0,2.46157063]
[1721740960845,0.002,66679.0,66674.0,2.47557063]
[1721740961171,0.002,66679.0,66674.0,2.48957063]
[1721740961301,0.002,66679.0,66674.0,2.47557063]
[1721740961507,0.002,66679.0,66674.0,2.17560363]
[1721740961713,0.002,66679.0,66674.0,2.55587063]
[1721740961986,0.002,66679.0,66674.0,2.55528147]
[1721740962199,0.002,66679.0,66674.0,2.24164092]
[1721740962406,0.0675,66679.0,66674.0,1.71267392]
[1721740962532,0.0675,66679.0,66674.0,2.21267392]
[1721740962752,0.0675,66679.0,66674.0,2.54064092]
[1721740962937,0.0675,66679.0,66674.0,2.52664092]
[1721740963168,0.002,66679.0,66674.0,2.57664092]
[1721740963379,0.002,66679.0,66674.0,2.59064092]
[1721740963573,0.002,66679.0,66674.0,2.58592723]
[1721740963947,0.002,66679.0,66674.0,0.85002623]
[1721740963948,0.15546,66675.0,66674.0,0.85002623]
[1721740964177,0.15546,66675.0,66674.0,1.42196023]
[1721740964374,0.15546,66675.0,66674.0,1.48596023]
[1721740964930,0.15546,66675.0,66674.0,1.47149444]
[1721740965128,0.15546,66675.0,66674.0,1.12152744]
[1721740965333,0.15546,66675.0,66674.0,1.25852744]
[1721740965448,0.00846,66675.0,66674.0,2.00316144]
[1721740965652,0.00846,66675.0,66674.0,2.06856144]
[1721740965950,0.00846,66675.0,66674.0,2.05456144]
[1721740966155,0.00846,66675.0,66674.0,2.06856144]
[1721740966361,0.00846,66675.0,66674.0,2.36852844]
[1721740966620,0.00846,66675.0,66674.0,2.35452844]
[1721740966789,0.00846,66675.0,66674.0,2.36852844]